bitfinex/quotes_ETHUSD_20260216
["timestamp","ask_amount","ask_price","bid_price","bid_amount"]
[1771204186466,0.37199309,1976.2,1975.8,0.001]
[1771204187044,7.68971487,1976.3,1975.8,0.001]
[1771204187269,0.37309309,1976.4,1975.8,0.001]
[1771204188169,0.0011,1976.4,1975.8,0.49830135]
[1771204188363,0.0011,1976.4,1975.8,0.001]
[1771204188749,0.0011,1976.4,1975.8,0.49830135]
[1771204189342,0.0011,1976.4,1975.8,0.001]
[1771204189343,8.06170796,1976.3,1975.8,0.001]
[1771204189751,0.0011,1976.4,1975.8,0.001]
[1771204190169,0.0011,1976.4,1975.8,0.49830135]
[1771204191157,0.0011,1976.4,1975.9,0.49730135]
[1771204191342,0.0011,1976.4,1976.0,0.49730135]
[1771204191547,0.0011,1976.4,1976.1,1.41930135]
[1771204192656,0.0011,1976.4,1976.1,1.42030135]
[1771204196261,0.0011,1976.4,1976.2,0.49730135]
[1771204198477,0.0011,1976.4,1976.1,0.923]
[1771204199571,8.06336793,1976.8,1976.1,0.923]
[1771204199572,0.37463195,1978.0,1976.4,0.49730135]
[1771204199899,0.37309309,1977.5,1976.7,0.49730135]
[1771204200258,1.09064716,1977.4,1976.7,0.49730135]
[1771204200456,8.780922,1977.4,1976.8,0.928]
[1771204200696,8.780922,1977.4,1976.5,0.49730135]
[1771204200697,9.15401509,1977.4,1976.5,0.49730135]
[1771204200902,7.69027484,1977.2,1976.6,0.928]
[1771204201196,8.06336793,1977.2,1976.6,0.928]
[1771204201502,1.46374025,1977.1,1976.5,0.928]
[1771204201653,8.06336793,1977.0,1976.5,0.928]
[1771204201965,9.15401509,1977.0,1976.5,0.928]
[1771204202356,0.37309309,1976.9,1976.1,0.49830135]
[1771204202588,9.15401509,1977.0,1976.2,0.928]
[1771204202793,9.15401509,1977.0,1976.2,1.42530135]
[1771204203164,1.46374025,1977.0,1976.3,0.49730135]
[1771204203370,1.09064716,1977.0,1976.3,0.49730135]
[1771204204961,0.0011,1976.9,1976.3,0.49730135]
[1771204205791,1.09064716,1976.8,1976.3,0.49730135]
[1771204206699,1.09064716,1976.7,1976.3,0.49730135]
[1771204207795,1.51434754,1976.7,1976.1,0.001]
[1771204208572,1.51434754,1976.6,1976.1,0.001]
[1771204208894,0.42370038,1976.6,1976.1,0.001]
[1771204209994,1.09064716,1976.5,1976.1,0.001]
[1771204210294,1.51434754,1976.5,1976.1,0.001]
[1771204210473,0.42370038,1976.4,1976.0,0.00253886]
[1771204210896,1.08964716,1976.3,1976.0,0.00253886]
[1771204217467,1.08964716,1976.2,1976.0,0.00253886]
[1771204217667,1.08964716,1976.5,1976.1,0.001]
[1771204218975,0.42480038,1976.6,1976.1,0.001]
[1771204219176,1.51334754,1976.5,1976.1,0.001]
[1771204220101,1.08964716,1976.5,1976.1,0.49423335]
[1771204221908,1.08964716,1976.5,1976.1,0.001]
[1771204222899,1.08964716,1976.5,1976.1,0.49423335]
[1771204223086,0.0011,1976.6,1976.1,0.49423335]
[1771204223289,1.09074716,1976.6,1976.1,0.49423335]
[1771204223480,1.09074716,1976.6,1976.1,0.001]
[1771204225375,1.08964716,1976.5,1976.1,0.001]
[1771204226195,1.08964716,1976.5,1976.1,0.49423335]
[1771204226924,0.0011,1976.6,1976.1,0.49423335]
[1771204227096,1.09074716,1976.6,1976.1,0.49423335]
[1771204227428,1.09074716,1976.6,1976.1,0.001]
[1771204228917,1.09074716,1976.6,1976.2,0.49323335]
[1771204229686,1.09074716,1976.6,1976.2,0.49423335]
[1771204229887,0.0011,1977.0,1976.6,0.49323335]
[1771204230192,0.0011,1977.2,1976.8,0.49323335]
[1771204232285,0.10393886,1978.0,1976.9,0.49323335]
[1771204232514,0.52873924,1978.0,1976.9,0.49323335]
[1771204232814,0.52873924,1978.0,1977.0,0.924]
[1771204232815,0.42480038,1977.8,1977.0,0.924]
[1771204234600,0.42480038,1977.8,1976.9,0.49323335]
[1771204240008,0.42633924,1978.0,1976.9,0.49323335]
[1771204241551,10.15,1979.4,1977.1,0.49323335]
[1771204241713,0.42480038,1979.4,1977.9,0.49323335]
[1771204242038,10.50043556,1979.7,1978.1,0.49323335]
[1771204242039,0.43875741,1979.2,1978.1,0.49323335]
[1771204242403,0.43875741,1979.2,1978.2,0.49323335]
[1771204242598,0.44029627,1979.0,1978.1,0.772]
[1771204243227,0.00153886,1980.0,1978.9,8.85143556]
[1771204243530,0.00153886,1980.0,1979.1,0.46003895]
[1771204249149,0.44183513,1980.0,1979.1,0.46003895]
[1771204249306,0.44183513,1980.0,1979.2,0.48483013]
[1771204249307,0.00153886,1980.0,1979.2,0.48483013]
[1771204249505,0.00153886,1980.0,1979.4,0.48483013]
[1771204250912,0.00153886,1980.0,1979.1,0.48483013]
[1771204251643,0.00153886,1980.0,1979.2,0.48483013]
[1771204252628,0.1313144,1980.5,1979.6,0.48483013]
[1771204253031,0.1313144,1980.5,1979.6,0.922]
[1771204253211,0.1313144,1980.5,1979.7,0.48483013]
[1771204253538,0.1313144,1980.5,1979.9,0.48483013]
[1771204255620,0.1313144,1980.5,1980.0,0.48483013]
[1771204256718,0.1313144,1980.5,1979.9,1.26268564]
[1771204256719,0.00153886,1981.0,1980.1,0.48483013]
[1771204257148,0.0011,1980.2,1980.1,0.48483013]
[1771204257346,0.00153886,1981.0,1980.1,0.48483013]
[1771204257852,0.00153886,1981.0,1980.3,0.48483013]
[1771204259141,1.08132665,1982.2,1980.3,0.48483013]
[1771204259323,1.08132665,1982.2,1981.3,0.48483013]
[1771204259324,0.00153886,1981.9,1981.3,0.48483013]
[1771204259530,1.08132665,1982.2,1981.3,0.48483013]
[1771204259531,1.08286551,1982.2,1981.4,0.48483013]
[1771204260530,1.08286551,1982.2,1981.3,0.48483013]
[1771204261070,0.003,1982.6,1981.9,0.48483013]
[1771204261351,0.00153886,1982.5,1981.9,0.48483013]
[1771204261927,0.003,1982.6,1981.7,0.928]
[1771204262156,0.00153886,1982.5,1981.7,0.928]
[1771204262355,0.00153886,1982.5,1981.6,0.48483013]
[1771204263653,0.00153886,1982.5,1981.3,0.48483013]
[1771204263858,0.44183513,1982.5,1981.3,0.48483013]
[1771204264055,0.44183513,1982.5,1981.1,0.91]
[1771204264650,1.649,1982.4,1981.2,0.48483013]
[1771204265147,0.44029627,1982.2,1981.0,0.00153886]
[1771204266278,0.44183513,1982.1,1981.0,0.00153886]
[1771204266441,9.99934915,1982.1,1981.0,0.00153886]
[1771204267168,0.44029627,1982.1,1981.0,0.00153886]
[1771204267347,0.58953886,1982.0,1981.0,0.48636899]
[1771204268252,0.00153886,1981.9,1981.0,0.48636899]
[1771204268446,0.588,1982.0,1981.0,0.48636899]
[1771204268647,0.00153886,1981.9,1981.0,0.48636899]
[1771204269146,0.00153886,1981.8,1981.0,0.48636899]
[1771204269344,0.0011,1982.0,1981.0,0.48636899]
[1771204269345,0.00153886,1981.9,1981.1,0.48483013]
[1771204270460,0.00153886,1981.9,1981.2,0.48483013]
[1771204270648,0.00153886,1981.8,1981.2,0.48483013]
[1771204270851,0.0011,1982.0,1981.2,0.48483013]
[1771204270852,0.00153886,1981.9,1981.2,0.48483013]
[1771204271245,0.00153886,1981.8,1981.2,0.48483013]
[1771204271448,0.00153886,1981.8,1981.3,0.51145472]
[1771204271778,0.00153886,1981.8,1981.3,0.48483013]
[1771204274673,0.00153886,1981.8,1981.0,0.02816345]
[1771204275340,0.00153886,1981.8,1981.0,0.00153886]
[1771204275968,0.44183513,1981.8,1981.0,0.00153886]
[1771204276656,2.08529627,1981.7,1981.0,0.00153886]
[1771204276861,0.44029627,1981.7,1980.6,0.49015489]
[1771204277061,1.646,1981.6,1980.6,0.49015489]
[1771204278352,2.08629627,1981.6,1980.6,0.49015489]
[1771204278552,0.44029627,1981.5,1980.4,0.909]
[1771204278756,0.737,1981.5,1980.5,0.51681738]
[1771204278958,0.737,1981.5,1980.5,0.49015489]
[1771204278959,1.646,1981.5,1980.5,0.49015489]
[1771204279474,2.08629627,1981.5,1980.5,0.49015489]
[1771204280249,0.44029627,1981.5,1980.5,0.49015489]
[1771204280445,0.44029627,1981.5,1980.2,0.922]
[1771204280446,1.647,1981.4,1980.2,0.922]
[1771204280650,0.44029627,1981.3,1980.2,0.922]
[1771204280847,0.44029627,1981.3,1980.1,0.49015489]
[1771204281081,2.08729627,1981.2,1980.1,0.49015489]
[1771204281576,0.44029627,1981.1,1980.1,0.49015489]
[1771204282790,1.648,1981.0,1980.7,0.001]
[1771204283078,1.648,1981.0,1980.5,0.001]
[1771204283265,2.08829627,1981.0,1980.5,0.001]
[1771204283448,1.649,1980.9,1980.5,0.001]
[1771204283884,1.649,1980.9,1979.2,0.001]
[1771204283885,0.00253886,1979.9,1979.2,0.001]
[1771204284084,0.747,1979.8,1979.2,0.49115489]
[1771204284956,0.57856839,1980.4,1979.2,0.49115489]
[1771204285162,0.57856839,1980.4,1979.2,0.001]
[1771204285163,0.47616839,1980.2,1979.2,0.001]
[1771204285580,1.656,1980.3,1979.2,0.001]
[1771204285581,0.47616839,1980.0,1979.2,0.001]
[1771204285880,0.47616839,1979.8,1979.2,0.001]
[1771204286080,0.47616839,1979.6,1979.2,0.001]
[1771204286482,0.1024,1979.9,1979.2,0.001]
[1771204286483,0.57856839,1979.9,1979.2,0.001]
[1771204286660,0.75,1979.6,1979.2,0.001]
[1771204287049,0.57856839,1979.9,1979.2,0.001]
[1771204287249,1.66,1979.8,1979.2,0.001]
[1771204287777,0.751,1979.7,1979.2,0.001]
[1771204288882,0.57856839,1979.9,1979.2,0.001]
[1771204288883,0.47616839,1979.9,1979.2,0.001]
[1771204289060,0.751,1979.8,1979.2,0.001]
[1771204289458,1.22716839,1979.8,1979.2,0.001]
[1771204289664,0.751,1979.7,1979.2,0.001]
[1771204290400,0.75,1979.8,1979.2,0.001]
[1771204292585,0.47616839,1979.7,1979.2,0.001]
[1771204293579,0.47616839,1979.6,1979.0,0.00253886]
[1771204293781,0.47616839,1979.9,1979.0,0.00253886]
[1771204293987,0.751,1979.8,1979.0,0.00253886]
[1771204296787,0.47616839,1979.9,1979.0,0.00253886]
[1771204296992,0.75,1979.8,1979.3,0.001]
[1771204299309,0.749,1979.8,1979.3,0.001]
[1771204301274,0.749,1979.7,1979.3,0.001]
[1771204305203,0.47616839,1979.9,1979.3,0.001]
[1771204305590,0.747,1979.8,1979.3,0.001]
[1771204306001,1.21617634,1979.8,1979.3,0.001]
[1771204306706,0.747,1979.7,1979.3,0.001]
[1771204311014,1.21617634,1979.7,1979.3,0.001]
[1771204311209,0.46917634,1979.6,1979.3,0.001]
[1771204312822,0.747,1979.7,1978.1,0.48292075]
[1771204312823,30.0,1979.5,1978.1,0.48292075]
[1771204313129,0.46917634,1979.0,1978.2,0.00353886]
[1771204313299,0.749,1978.9,1978.2,0.00353886]
[1771204315389,0.749,1978.9,1978.1,0.47992075]
[1771204315592,0.749,1978.9,1978.2,0.00353886]
[1771204315795,0.749,1978.8,1978.3,0.48645961]
[1771204316032,0.749,1978.9,1978.3,0.48292075]
[1771204316233,0.749,1978.9,1978.4,0.00353886]
[1771204316614,0.749,1978.9,1978.5,0.00353886]
[1771204317127,1.21817634,1978.9,1978.0,0.48445961]
[1771204317425,1.21817634,1978.9,1978.1,0.00353886]
[1771204318104,0.749,1978.8,1978.1,0.00353886]
[1771204320706,0.46917634,1978.7,1978.1,0.00353886]
[1771204320902,0.46917634,1978.7,1978.0,0.00153886]
[1771204321203,0.46917634,1978.6,1978.0,0.00153886]
[1771204321611,2.12817634,1978.5,1978.0,0.00153886]
[1771204321826,0.46917634,1978.4,1978.0,0.00153886]
[1771204322234,0.46917634,1978.4,1977.4,0.48292075]
[1771204322401,0.46917634,1978.4,1977.5,0.00353886]
[1771204322603,0.46917634,1978.4,1977.1,0.48645961]
[1771204322999,1.66,1978.3,1977.1,0.48645961]
[1771204324298,1.66,1978.3,1977.3,0.48292075]
[1771204324522,1.66,1978.3,1976.9,0.001]
[1771204324523,0.46917634,1977.4,1976.9,0.001]
[1771204324731,1.21917634,1977.3,1976.7,0.001]
[1771204325843,2.48353436,1977.3,1976.7,0.001]
[1771204326203,0.46917634,1977.1,1976.7,0.001]
[1771204326445,0.57157634,1977.0,1976.2,0.001]
[1771204327031,10.05597834,1976.9,1976.2,0.001]
[1771204327232,0.46917634,1976.7,1976.2,0.001]
[1771204327822,8.84198,1976.9,1976.2,0.001]
[1771204328012,0.753,1976.9,1976.2,0.48392075]
[1771204328212,20.185833,1976.3,1975.3,0.001]
[1771204328534,8.84198,1976.5,1975.4,0.00253886]
[1771204328535,0.57157634,1976.1,1975.4,0.00253886]
[1771204328734,0.756,1976.2,1975.4,0.00253886]
[1771204328907,0.756,1976.2,1975.5,0.00253886]
[1771204329100,0.756,1976.2,1975.4,0.00253886]
[1771204329305,0.756,1976.2,1975.5,0.00253886]
[1771204329507,0.756,1976.2,1975.4,0.00253886]
[1771204329905,1.26511816,1976.1,1975.4,0.00253886]
[1771204330114,1.7342945,1976.1,1975.5,0.00253886]
[1771204330328,0.46917634,1976.0,1975.4,0.00253886]
[1771204330838,0.46917634,1976.0,1975.5,0.00253886]
[1771204331136,0.46917634,1976.0,1975.4,0.00253886]
[1771204331518,0.46917634,1975.8,1974.6,0.001]
[1771204331718,5.69857634,1975.3,1974.0,0.48445961]
[1771204331938,2.02471674,1975.2,1974.0,0.48445961]
[1771204332338,1.22817634,1975.2,1974.0,0.48445961]
[1771204332538,0.759,1975.2,1974.0,0.48445961]
[1771204332837,4.090928,1975.7,1974.2,0.48292075]
[1771204333337,9.31115634,1975.6,1974.2,0.48292075]
[1771204333644,8.84198,1975.3,1974.2,0.48292075]
[1771204333842,10.0613448,1975.3,1974.0,0.91253886]
[1771204334050,1.26569461,1975.2,1974.0,0.91253886]
[1771204334370,1.26569461,1975.2,1973.1,0.00272092]
[1771204334371,8.84198,1974.1,1973.1,0.00272092]
[1771204334817,0.762,1974.2,1973.1,0.00272092]
[1771204335538,0.1024,1974.1,1973.1,0.00272092]
[1771204336036,1.82821071,1974.1,1973.1,0.00272092]
[1771204336238,0.762,1974.2,1973.1,0.49395076]
[1771204336736,0.762,1974.2,1973.2,0.001]
[1771204336939,3.448,1974.9,1973.4,0.49122984]
[1771204337238,2.03357983,1975.4,1973.7,0.49122984]
[1771204337443,0.768,1975.4,1973.7,0.49122984]
[1771204337813,0.1024,1975.3,1973.7,0.49122984]
[1771204338435,0.768,1975.4,1974.0,0.49122984]
[1771204338630,1.26563303,1975.3,1974.0,0.49122984]
[1771204338845,1.26563303,1975.3,1973.9,0.912]
[1771204338846,8.84198,1975.2,1973.9,0.912]
[1771204339317,8.84198,1975.2,1973.7,0.49122984]
[1771204339318,0.1024,1975.1,1973.7,0.49122984]
[1771204339542,8.84198,1974.9,1973.8,0.912]
[1771204339720,0.768,1975.4,1973.9,0.49122984]
[1771204339922,0.1024,1975.3,1973.9,0.49122984]
[1771204342154,0.4593648,1975.6,1974.0,0.49122984]
[1771204342351,0.1024,1975.5,1974.0,0.49122984]
[1771204342551,0.1024,1975.5,1974.1,2.31522984]
[1771204344251,0.1024,1975.5,1974.2,0.49122984]
[1771204344449,0.1024,1975.6,1974.2,0.49122984]
[1771204345055,0.1024,1975.6,1974.3,0.49122984]
[1771204345232,0.1024,1975.8,1974.3,0.49122984]
[1771204350059,0.0011,1974.9,1974.3,0.49122984]
[1771204350436,0.0011,1974.9,1974.4,1.825]
[1771204350633,0.0011,1974.9,1974.4,2.31622984]
[1771204352864,0.0011,1974.9,1974.3,0.49122984]
[1771204353062,0.0011,1974.9,1974.4,2.31722984]
[1771204353265,0.0011,1974.9,1974.4,0.49122984]
[1771204353464,0.0011,1974.9,1974.5,1.827]
[1771204356549,0.0011,1974.9,1974.5,2.31822984]
[1771204357169,0.0011,1974.9,1974.5,1.827]
[1771204357667,0.0011,1974.9,1974.6,1.826]
[1771204358050,0.0011,1974.9,1974.6,2.31722984]
[1771204358245,0.0011,1975.2,1974.6,2.31722984]
[1771204358462,0.0011,1975.2,1974.7,0.49122984]
[1771204359570,0.0011,1975.2,1974.6,1.826]
[1771204359946,0.0011,1975.2,1974.7,2.31722984]
[1771204360150,0.0011,1975.2,1974.8,0.49122984]
[1771204360837,0.46090366,1976.0,1974.8,0.49122984]
[1771204361038,0.00153886,1976.0,1974.9,0.54186531]
[1771204361487,0.46090366,1976.0,1975.0,1.825]
[1771204363454,0.0011,1975.1,1975.0,1.825]
[1771204363778,0.0011,1975.2,1975.1,0.47985376]
[1771204364288,0.0011,1975.2,1974.4,16.94779028]
[1771204364289,0.0011,1975.2,1974.2,0.47985376]
[1771204364444,0.0011,1975.2,1974.3,2.30485376]
[1771204364865,0.0011,1975.2,1974.4,0.47985376]
[1771204365466,0.0011,1975.2,1974.3,1.825]
[1771204365687,0.45877271,1975.2,1974.4,1.825]
[1771204365861,0.0011,1975.2,1974.4,1.825]
[1771204366851,0.0011,1975.2,1974.5,0.49867631]
[1771204368059,0.0011,1975.2,1974.6,1.825]
[1771204369879,0.0011,1975.2,1974.5,0.49867631]
[1771204370075,0.0011,1975.2,1974.6,1.824]
[1771204370958,0.0011,1975.2,1974.7,1.824]
[1771204373387,0.0011,1975.2,1974.7,2.32267631]
[1771204373559,0.0011,1975.2,1974.8,0.49867631]
[1771204374486,0.0011,1975.2,1974.2,0.912]
[1771204374487,0.45877271,1975.2,1974.2,0.912]
[1771204376263,0.45877271,1975.2,1974.8,0.001]
[1771204376581,0.0011,1975.1,1974.8,0.001]
[1771204380094,0.45877271,1975.1,1974.8,0.001]
[1771204381675,0.0011,1975.1,1974.8,0.001]
[1771204382099,0.0011,1975.1,1974.9,0.909]
[1771204382301,0.0011,1975.4,1974.9,0.909]
[1771204382668,0.0011,1975.4,1974.9,0.49867631]
[1771204382974,0.0011,1975.4,1975.0,1.821]
[1771204383702,0.0033,1975.4,1974.8,0.001]
[1771204383905,0.0033,1975.4,1974.9,1.821]
[1771204384805,0.0011,1975.4,1974.9,2.31967631]
[1771204387101,0.0011,1975.4,1974.8,0.001]
[1771204387102,0.0033,1975.4,1974.8,0.001]
[1771204387278,0.0033,1975.4,1975.0,0.908]
[1771204387904,0.0033,1975.4,1975.1,0.908]
[1771204388089,0.0033,1975.4,1975.1,1.82]
[1771204388478,0.0011,1975.4,1975.1,1.82]
[1771204388676,0.0022,1975.3,1975.1,1.82]
[1771204388901,0.0022,1975.3,1975.2,0.907]
[1771204389111,0.0011,1975.4,1975.2,0.9048]
[1771204389492,0.0011,1975.3,1975.2,0.9048]
[1771204389780,0.0011,1975.3,1974.8,0.001]
[1771204389982,0.45877271,1975.3,1974.8,0.001]
[1771204390286,0.0011,1975.3,1974.8,0.001]
[1771204391015,0.45877271,1975.3,1974.8,0.001]
[1771204391383,0.0011,1975.3,1974.8,0.001]
[1771204393887,0.49579316,1975.1,1974.5,0.001]
[1771204394123,0.49579316,1975.1,1974.2,0.909]
[1771204395692,0.0011,1975.3,1974.3,0.49214675]
[1771204397284,0.49689316,1975.3,1974.3,0.49214675]
[1771204398016,0.49689316,1975.3,1974.1,2.17939085]
[1771204398017,0.49689316,1975.3,1974.1,0.001]
[1771204398320,0.49689316,1975.3,1974.2,1.821]
[1771204399925,0.49689316,1975.3,1974.1,0.001]
[1771204399926,0.1024,1975.2,1974.1,0.001]
[1771204400223,0.49579316,1975.1,1974.1,0.001]
[1771204401225,0.49579316,1975.1,1974.3,0.001]
[1771204401793,0.49579316,1975.0,1974.3,0.001]
[1771204404332,0.49579316,1974.7,1974.1,0.001]
[1771204409531,0.49579316,1974.7,1973.9,0.001]
[1771204409823,0.49579316,1974.6,1973.9,0.001]
[1771204412698,9.61418495,1974.1,1973.7,0.001]
[1771204412902,0.49579316,1974.2,1973.7,0.001]
[1771204413531,0.49579316,1974.2,1974.0,0.001]
[1771204413698,0.49579316,1974.2,1973.7,0.001]
[1771204418516,0.49579316,1974.2,1973.2,0.49314675]
[1771204418517,0.49579316,1974.2,1973.2,0.001]
[1771204418706,0.0011,1974.9,1973.2,0.49314675]
[1771204418707,0.1024,1974.1,1973.2,0.49314675]
[1771204419056,0.0011,1974.9,1973.2,0.49314675]
[1771204419057,0.59819316,1974.4,1973.2,0.49314675]
[1771204419421,0.59819316,1974.4,1973.4,0.49214675]
[1771204419934,0.1024,1974.6,1973.6,0.49214675]
[1771204420264,0.59819316,1974.6,1973.6,0.49214675]
[1771204420755,0.59819316,1974.6,1973.5,0.9]
[1771204421249,0.59819316,1974.6,1973.6,0.49214675]
[1771204423942,11.63520545,1974.9,1973.6,0.54279938]
[1771204423943,0.4587282,1974.9,1973.6,0.54279938]
[1771204424116,0.1024,1974.8,1973.6,0.54279938]
[1771204424325,0.5600282,1974.8,1973.6,0.54279938]
[1771204424514,0.5600282,1974.8,1973.7,1.809]
[1771204424915,0.5600282,1974.8,1973.7,2.28125874]
[1771204425508,0.5600282,1974.8,1973.8,0.47225874]
[1771204425944,0.5600282,1974.8,1973.8,0.47325874]
[1771204426318,0.0011,1974.7,1973.8,0.47325874]
[1771204429532,0.46630809,1974.7,1973.8,0.47325874]
[1771204431521,0.46630809,1974.7,1973.8,2.27825874]
[1771204432814,0.46630809,1974.7,1973.8,1.38525874]
[1771204433217,0.0011,1974.7,1973.9,0.47225874]
[1771204433949,0.0011,1974.7,1973.9,0.52287031]
[1771204435021,0.0011,1974.7,1973.9,0.47225874]
[1771204435750,0.0011,1974.7,1973.8,0.47325874]
[1771204438633,0.0011,1974.6,1973.8,0.47325874]
[1771204438835,0.0011,1974.6,1974.0,0.47225874]
[1771204444584,0.0011,1974.8,1974.2,0.47225874]
[1771204446482,0.0011,1974.9,1974.2,0.47225874]
[1771204446483,0.0011,1975.3,1974.6,0.47225874]
[1771204446685,0.46674695,1976.0,1974.8,0.47225874]
[1771204448283,0.46674695,1976.0,1974.9,0.889]
[1771204448284,0.46520809,1975.9,1974.9,0.889]
[1771204448581,0.46520809,1975.9,1974.9,2.27325874]
[1771204449259,0.46520809,1975.9,1975.0,0.47225874]
[1771204451059,0.0011,1975.3,1975.0,0.47225874]
[1771204454689,0.0011,1975.3,1974.9,0.001]
[1771204455003,0.0011,1975.3,1975.0,0.888]
[1771204457804,0.0011,1975.3,1975.0,1.38120018]
[1771204459022,0.0011,1975.3,1974.9,0.001]
[1771204459190,0.0011,1975.3,1974.6,0.52]
[1771204459707,0.45891783,1975.2,1974.6,0.52]
[1771204461709,0.46001783,1975.3,1974.6,0.52]
[1771204462073,0.46001783,1975.3,1974.7,0.886]
[1771204463101,0.46001783,1975.3,1974.6,0.001]
[1771204463303,0.46001783,1975.3,1974.7,0.887]
[1771204466798,0.0011,1975.3,1974.7,0.887]
[1771204467110,0.0011,1975.3,1974.8,0.49320018]
[1771204471908,0.0011,1975.6,1975.0,0.49320018]
[1771204472683,0.0011,1975.6,1975.1,1.798]
[1771204475214,0.0011,1975.6,1975.1,2.29120018]
[1771204475417,0.0011,1975.5,1975.1,2.29120018]
[1771204478912,0.0011,1975.8,1975.1,2.29120018]
[1771204478913,0.0011,1975.8,1975.3,0.49320018]
[1771204479213,0.46001783,1975.8,1975.1,0.49320018]
[1771204479416,0.46001783,1975.8,1974.9,8.87744944]
[1771204479417,0.46001783,1975.8,1975.4,1.798]
[1771204479917,0.46001783,1975.8,1975.0,0.49320018]
[1771204480216,0.46001783,1975.8,1975.1,1.798]
[1771204484426,0.47705201,1975.3,1974.7,0.001]
[1771204486902,0.47705201,1975.3,1974.8,0.001]
[1771204491712,0.47705201,1975.3,1974.8,0.89]
[1771204495932,0.49307502,1975.0,1974.2,0.912]
[1771204496234,0.49307502,1975.0,1973.8,0.001]
[1771204496235,0.49307502,1975.0,1974.3,0.912]
[1771204497309,1.26586693,1975.0,1974.3,0.912]
[1771204497523,0.49307502,1974.9,1974.3,0.912]
[1771204497721,0.49307502,1974.9,1974.0,1.798]
[1771204499539,0.49307502,1974.9,1974.7,0.001]
[1771204499739,0.49307502,1974.9,1974.5,0.001]
[1771204500410,0.49307502,1974.8,1974.5,0.001]
[1771204501123,0.1024,1974.9,1974.5,0.001]
[1771204501323,0.59547502,1974.9,1974.5,0.001]
[1771204501730,0.49307502,1974.9,1974.5,0.001]
[1771204505015,0.00153886,1975.0,1974.5,0.001]
[1771204506747,0.49461388,1975.0,1974.5,0.001]
[1771204507126,0.49461388,1975.0,1974.6,0.889]
[1771204507336,0.49461388,1975.0,1974.6,1.801]
[1771204507854,0.00153886,1975.0,1974.6,2.25187638]
[1771204508052,0.0011,1975.4,1974.6,2.25187638]
[1771204508053,0.0011,1975.4,1974.7,0.45087638]
[1771204508728,0.0011,1975.4,1974.8,0.48877195]
[1771204511956,0.0011,1975.4,1974.9,0.48877195]
[1771204512158,0.0011,1975.3,1974.9,0.48877195]
[1771204513568,0.0011,1975.5,1975.3,0.46919011]
[1771204513735,0.0011,1975.5,1974.7,17.72077187]
[1771204513736,0.0011,1975.5,1975.4,2.27019011]
[1771204515461,0.0011,1975.5,1975.4,1.801]
[1771204519060,0.0011,1975.5,1975.4,2.27019011]
[1771204521486,0.0011,1975.5,1975.4,1.801]
[1771204523588,0.0011,1975.7,1975.4,2.27019011]
[1771204524168,0.0011,1975.7,1975.3,0.05062265]
[1771204524491,0.50006084,1975.7,1975.5,0.912]
[1771204524880,0.0011,1975.7,1975.5,0.912]
[1771204525753,0.0011,1975.7,1975.4,0.46919011]
[1771204525958,0.0011,1975.7,1975.5,1.799]
[1771204526155,0.0011,1975.7,1975.5,9.96312132]
[1771204526560,0.00153886,1976.0,1975.6,0.51980251]
[1771204526787,0.00153886,1976.0,1975.8,7.69493121]
[1771204526987,0.00153886,1976.0,1975.9,0.888]
[1771204527190,0.49896084,1976.7,1975.9,0.888]
[1771204529390,0.49896084,1976.7,1975.8,7.69493121]
[1771204529695,0.49896084,1976.7,1975.9,1.8]
[1771204530390,7.69493121,1976.6,1975.9,1.8]
[1771204530594,0.49896084,1976.5,1975.9,1.8]
[1771204531474,0.49896084,1976.8,1976.0,8.16412132]
[1771204531678,0.49896084,1976.8,1976.2,7.69493121]
[1771204531878,0.49896084,1976.8,1976.3,0.889]
[1771204532787,0.0011,1976.9,1976.3,1.35819011]
[1771204532979,0.0011,1976.9,1976.3,0.889]
[1771204533185,0.50006084,1976.9,1976.3,0.889]
[1771204534098,0.0011,1976.9,1976.3,0.889]
[1771204535001,0.0011,1976.9,1976.3,1.35819011]
[1771204535198,0.0011,1976.9,1976.3,0.889]
[1771204535387,0.0011,1976.9,1976.4,0.46919011]
[1771204536499,0.0011,1976.8,1976.4,0.46919011]
[1771204536702,0.0011,1976.8,1976.5,0.46919011]
[1771204536910,0.0011,1976.8,1976.6,0.911]
[1771204537132,0.0011,1976.8,1976.0,8.96006359]
[1771204537133,0.49896084,1976.5,1975.5,0.001]
[1771204537278,0.49896084,1976.2,1975.9,0.658]
[1771204537598,0.49896084,1976.2,1976.0,0.895]
[1771204538897,0.49896084,1976.2,1975.5,0.001]
[1771204538898,0.49896084,1976.2,1976.1,0.897]
[1771204539400,0.49896084,1976.4,1976.1,0.897]
[1771204539998,0.0011,1976.8,1976.1,0.897]
[1771204539999,0.49896084,1976.7,1976.1,1.23767504]
[1771204541490,0.49896084,1976.7,1975.5,0.001]
[1771204541689,0.49896084,1976.5,1975.6,2.12467504]
[1771204543510,0.49896084,1976.5,1975.7,1.806]
[1771204544017,0.49896084,1976.5,1975.8,0.34067504]
[1771204546635,0.46149237,1976.4,1975.8,0.34067504]
[1771204546915,0.46149237,1976.4,1975.8,1.23467504]
[1771204547823,0.46149237,1976.4,1975.8,0.34067504]
[1771204548027,0.46149237,1976.4,1975.8,1.23367504]
[1771204549231,0.46259237,1976.4,1975.8,1.23367504]
[1771204551805,0.46259237,1976.4,1975.6,0.001]
[1771204551806,0.46149237,1975.9,1975.5,0.001]
[1771204552027,0.46149237,1975.9,1975.4,0.001]
[1771204553533,0.46149237,1975.8,1975.2,0.001]
[1771204553736,0.46149237,1975.6,1975.2,0.001]
[1771204554603,0.46149237,1975.9,1975.2,0.001]
[1771204554804,0.1024,1976.1,1975.2,0.001]
[1771204555015,0.56389237,1976.1,1975.2,0.47221402]
[1771204556031,0.56389237,1976.1,1975.3,1.803]
[1771204556032,0.46149237,1976.0,1975.3,1.803]
[1771204557750,0.46149237,1976.2,1975.4,0.47121402]
[1771204560347,0.46149237,1976.2,1975.2,0.001]
[1771204560511,0.46149237,1976.2,1975.3,1.801]